bitfinex/quotes_ETHUSD_20241124
["timestamp","ask_amount","ask_price","bid_price","bid_amount"]
[1732408831155,0.05406353,3407.1,3406.4,0.55]
[1732408831386,0.04968168,3407.6,3406.5,0.8227]
[1732408831690,0.35731835,3407.5,3406.6,0.18373851]
[1732408831899,0.27296977,3407.4,3406.8,0.55]
[1732408832189,0.35728525,3407.3,3406.9,0.8227]
[1732408832389,0.08431548,3407.3,3406.9,0.8227]
[1732408832685,0.04968168,3407.6,3406.9,0.8227]
[1732408832994,0.04968168,3407.6,3407.0,0.55]
[1732408833191,0.04968168,3407.6,3407.2,0.55]
[1732408833504,0.04968168,3407.6,3407.4,0.55]
[1732408833787,0.04968168,3407.6,3407.5,1.3727]
[1732408835560,1.68e-06,3407.6,3407.5,1.3727]
[1732408836162,1.68e-06,3407.6,3407.5,1.40203948]
[1732408837058,1.68e-06,3407.6,3407.5,1.3727]
[1732408837286,1.68e-06,3407.6,3407.5,1.80997]
[1732408838293,1.68e-06,3407.6,3406.4,3.0]
[1732408838460,1.68e-06,3407.6,3406.6,0.7854]
[1732408838664,1.68e-06,3407.6,3406.8,0.7854]
[1732408839391,1.68e-06,3407.6,3406.6,0.59405247]
[1732408839392,1.68e-06,3407.6,3406.9,0.0293486]
[1732408839571,1.68e-06,3407.6,3407.0,0.7854]
[1732408839768,1.68e-06,3407.6,3407.1,0.55]
[1732408839988,1.68e-06,3407.6,3407.5,0.55]
[1732408840296,1.68e-06,3407.6,3407.5,1.52394]
[1732408842468,1.68e-06,3407.6,3407.5,4.48798129]
[1732408842882,1.68e-06,3407.6,3407.5,4.45864]
[1732408846316,1.68e-06,3407.6,3407.5,7.45864]
[1732408847206,1.68e-06,3407.6,3407.5,10.26981633]
[1732408847512,1.68e-06,3407.6,3407.5,7.45864]
[1732408849189,0.76829012,3409.0,3407.5,6.67324]
[1732408849482,0.08502406,3408.9,3407.7,0.55]
[1732408849703,0.08502406,3408.9,3407.8,2.9344]
[1732408850027,0.76829012,3409.0,3407.8,2.9344]
[1732408850200,0.76829012,3409.0,3407.9,0.50568045]
[1732408850407,0.76829012,3409.0,3408.0,2.9343]
[1732408850723,0.76829012,3409.0,3408.1,0.7972]
[1732408850894,0.76829012,3409.0,3408.2,2.96344048]
[1732408851224,0.0851185,3408.9,3408.3,0.55]
[1732408851426,1.03224689,3409.7,3408.4,3.36203]
[1732408851726,0.35709212,3409.6,3408.4,2.9339]
[1732408851927,0.27185789,3409.5,3408.4,2.9339]
[1732408852230,0.08520117,3409.4,3408.5,0.34839]
[1732408852397,0.85460117,3409.4,3408.5,0.34839]
[1732408852928,0.85460117,3409.4,3408.4,2.9339]
[1732408854627,0.85460117,3409.4,3408.5,0.8112]
[1732408854836,0.85460117,3409.4,3408.6,2.9338]
[1732408855896,0.2722584,3409.3,3408.6,2.9338]
[1732408856095,0.85460117,3409.4,3408.6,2.9338]
[1732408856307,0.0851681,3409.2,3408.6,2.9338]
[1732408856534,0.7694,3409.4,3408.6,2.9338]
[1732408856535,0.08518463,3409.3,3408.6,2.9338]
[1732408856737,0.08515157,3409.1,3408.6,3.3083]
[1732408856890,0.0851681,3409.2,3408.6,3.3083]
[1732408857092,0.08513503,3409.0,3408.6,3.3083]
[1732408857320,0.08515157,3409.1,3408.7,0.41195]
[1732408857505,0.0851185,3408.9,3408.8,2.9336]
[1732408858137,0.8329,3409.1,3408.8,2.9336]
[1732408858319,0.0851185,3408.9,3408.8,2.9336]
[1732408858520,0.8329,3409.5,3408.8,2.9336]
[1732408858721,0.0851185,3408.9,3408.8,3.30808]
[1732408858928,0.8329,3409.5,3408.8,3.30808]
[1732408859236,0.27273389,3409.4,3408.8,2.9336]
[1732408859448,0.35791852,3409.3,3408.8,2.9336]
[1732408859729,0.27273389,3409.2,3408.8,2.9336]
[1732408860109,0.08515157,3409.1,3408.8,2.9336]
[1732408860310,0.27321002,3409.0,3408.8,2.9336]
[1732408860510,0.08515157,3409.1,3408.8,2.9336]
[1732408860739,0.08516393,3408.9,3408.8,2.9336]
[1732408860915,0.8329,3409.5,3408.8,2.9336]
[1732408861111,0.08516393,3408.9,3408.8,2.9336]
[1732408861308,0.8329,3409.5,3408.8,2.9336]
[1732408861613,0.27334598,3409.4,3408.9,0.29336]
[1732408861814,0.27334598,3409.3,3409.0,2.9334]
[1732408862015,0.27334598,3409.2,3409.0,2.9334]
[1732408862238,0.43735358,3409.7,3409.0,2.9334]
[1732408862545,0.8329,3409.9,3409.0,2.9334]
[1732408862546,0.27343538,3409.6,3409.1,0.8112]
[1732408862711,0.27343538,3409.5,3409.2,2.9332]
[1732408863042,0.43735358,3409.7,3409.2,2.9332]
[1732408863043,0.27343538,3409.4,3409.2,2.9332]
[1732408863204,0.8329,3409.3,3409.2,2.9332]
[1732408863402,1.10633538,3409.3,3409.2,2.9332]
[1732408863906,0.27343538,3409.3,3409.2,2.9332]
[1732408866344,0.8329,3409.6,3409.2,2.9332]
[1732408866639,0.71117613,3409.5,3409.2,2.9332]
[1732408866840,0.27352439,3409.4,3409.2,2.9332]
[1732408867165,0.27352439,3409.3,3409.2,2.9332]
[1732408867752,0.27352439,3409.3,3409.2,3.30764]
[1732408868112,0.35875446,3409.3,3409.2,3.30764]
[1732408868448,0.35875446,3409.3,3409.2,3.85764]
[1732408868650,0.27352439,3409.3,3409.2,3.85764]
[1732408868851,0.43763902,3410.0,3409.2,3.85764]
[1732408869049,0.35881717,3409.9,3409.4,0.55]
[1732408869335,0.27348792,3409.8,3409.5,2.933]
[1732408869568,0.27348792,3409.7,3409.5,2.933]
[1732408869780,0.27348792,3409.6,3409.5,2.933]
[1732408870075,0.35876758,3409.6,3409.5,3.3279884]
[1732408870274,0.35879598,3409.6,3409.5,3.3279884]
[1732408870684,0.35873056,3409.6,3409.5,2.933]
[1732408871539,1.19163056,3409.6,3409.5,2.933]
[1732408872188,0.35873056,3409.6,3409.5,2.933]
[1732408873339,0.79625201,3409.6,3409.5,2.933]
[1732408873545,1.28585999,3409.6,3409.5,2.933]
[1732408873777,1.28611055,3409.6,3409.5,2.933]
[1732408875147,1.74202267,3409.6,3409.5,2.933]
[1732408875364,2.57002267,3409.6,3409.5,2.933]
[1732408876470,2.11411055,3409.6,3409.5,2.933]
[1732408876666,5.04700055,3409.6,3409.5,2.933]
[1732408876883,2.11411055,3409.6,3409.5,2.27440701]
[1732408880309,2.57046507,3409.6,3409.5,2.27440701]
[1732408880886,2.11411055,3409.6,3409.5,2.27440701]
[1732408881205,2.57121873,3409.6,3409.5,2.27440701]
[1732408881764,2.1148394,3409.6,3409.5,2.27440701]
[1732408881968,2.57123546,3409.6,3409.5,2.27440701]
[1732408882210,2.1148394,3409.6,3409.5,2.27440701]
[1732408882507,2.5712393,3409.6,3409.5,2.27440701]
[1732408882669,2.08163132,3409.6,3409.5,2.27440701]
[1732408883607,1.62523142,3409.6,3409.5,2.27440701]
[1732408883997,4.55812142,3409.6,3409.5,2.27440701]
[1732408884198,4.55818364,3409.6,3409.5,2.27440701]
[1732408884436,6.73018364,3409.6,3409.5,2.27440701]
[1732408884733,9.11455729,3409.6,3409.5,0.62761294]
[1732408884930,2.93356,3408.9,3407.7,0.7694]
[1732408885143,2.81117633,3408.6,3407.7,0.7694]
[1732408885438,1.57117151,3408.5,3407.7,0.7694]
[1732408885742,0.70446314,3408.4,3407.7,0.7694]
[1732408886058,0.35897598,3408.3,3407.7,0.7694]
[1732408886215,0.27385153,3408.2,3407.7,0.7694]
[1732408886416,0.35894289,3408.1,3407.7,0.7694]
[1732408886652,0.27385153,3408.0,3407.7,0.7694]
[1732408886856,0.3589098,3407.9,3407.0,0.15438404]
[1732408887168,0.27385153,3407.8,3407.1,0.7694]
[1732408887317,0.08505827,3407.9,3407.2,0.15969614]
[1732408887520,0.08496182,3407.7,3407.2,0.15969614]
[1732408887760,0.08497836,3407.8,3407.2,0.13034878]
[1732408887914,0.08494527,3407.6,3407.3,0.7694]
[1732408888265,0.774,3408.5,3407.3,0.7694]
[1732408888565,0.71702877,3408.4,3407.3,0.7694]
[1732408888731,2.81117633,3408.2,3407.3,0.7694]
[1732408888930,0.27343949,3408.1,3407.3,0.7694]
[1732408889124,0.27343949,3408.0,3407.3,0.7694]
[1732408889460,0.08497578,3407.9,3407.3,0.7694]
[1732408889753,0.27330257,3407.8,3407.3,0.7694]
[1732408889923,0.08497578,3407.9,3407.3,0.7694]
[1732408890125,0.08494029,3407.7,3407.3,0.7694]
[1732408890319,0.08495684,3407.8,3407.3,0.7694]
[1732408890660,0.78650854,3408.5,3406.4,3.02934571]
[1732408890661,0.35816623,3407.7,3406.6,0.55]
[1732408890830,0.08494029,3407.7,3406.6,0.7694]
[1732408891069,0.27323532,3407.6,3406.6,0.79875141]
[1732408891264,0.774,3407.9,3406.7,0.0293512]
[1732408891265,0.08489883,3407.5,3406.7,0.0293512]
[1732408891471,0.774,3407.9,3406.8,0.7694]
[1732408891790,0.35804053,3407.8,3406.8,0.7694]
[1732408892004,0.27309206,3407.7,3406.8,0.7694]
[1732408892299,0.08491538,3407.6,3406.8,0.7694]
[1732408892595,0.774,3407.9,3406.9,0.55]
[1732408892794,2.81117633,3408.2,3407.0,0.7694]
[1732408892795,0.08489883,3407.5,3407.0,0.7694]
[1732408893093,0.08488228,3407.4,3407.0,0.7694]
[1732408893259,0.774,3408.1,3407.0,0.7694]
[1732408893460,0.35780753,3408.0,3407.0,0.7694]
[1732408893811,0.27288457,3407.9,3407.0,0.7694]
[1732408893961,0.27288457,3407.8,3407.0,0.7694]
[1732408894164,0.08488987,3407.8,3407.0,0.7694]
[1732408894588,0.774,3408.1,3406.2,0.0596668]
[1732408894589,0.774,3408.1,3407.1,0.55]
[1732408894760,0.08469041,3407.7,3407.2,0.8047]
[1732408894957,0.774,3408.1,3407.2,0.8047]
[1732408895271,0.35753412,3408.0,3407.3,0.55]
[1732408895454,0.08474364,3408.0,3407.4,0.19047]
[1732408895900,0.08474364,3408.0,3407.2,0.8047]
[1732408896072,0.27276758,3407.9,3407.2,0.8047]
[1732408896276,0.08472729,3407.8,3407.2,0.8047]
[1732408896480,0.774,3408.1,3407.2,0.8047]
[1732408896685,0.35748122,3408.0,3407.2,0.8047]
[1732408896881,0.27271941,3407.9,3407.2,0.8047]
[1732408897097,0.08473566,3407.8,3407.2,0.8047]
[1732408897277,0.774,3408.1,3407.2,0.8047]
[1732408897580,0.5851327,3408.6,3407.3,0.55]
[1732408897581,0.08476876,3408.0,3407.3,0.55]
[1732408898001,1.25119878,3408.4,3407.3,0.55]
[1732408898285,0.2726872,3408.3,3407.3,0.55]
[1732408898471,0.08481839,3408.3,3407.4,0.834043]
[1732408898704,0.27268388,3408.2,3407.5,0.55]
[1732408898888,0.08480184,3408.2,3407.5,0.55]
[1732408899094,0.88781846,3408.5,3407.5,0.55]
[1732408899411,0.3576069,3408.4,3407.4,0.8047]
[1732408899612,0.27275882,3408.3,3407.4,0.8047]
[1732408899816,0.27275882,3408.2,3407.4,0.8047]
[1732408900004,0.0848162,3408.2,3407.4,0.8047]
[1732408900327,0.27282696,3408.1,3407.4,0.8047]
[1732408900548,2.89599253,3408.2,3407.4,0.8047]
[1732408900549,0.67121622,3408.0,3407.4,0.8047]
[1732408900837,0.48315625,3408.0,3407.4,0.8047]
[1732408901597,0.48315625,3408.0,3406.6,0.02934569]
[1732408901905,0.48315625,3408.0,3406.5,0.13037557]
[1732408901906,2.81117633,3407.8,3406.7,0.8047]
[1732408902107,1.17256996,3407.7,3406.7,0.8047]
[1732408902302,0.27294367,3407.6,3406.7,0.8047]
[1732408902505,0.08468721,3407.5,3406.7,0.8047]
[1732408902706,0.27294367,3407.4,3406.7,0.8047]
[1732408902901,0.08465411,3407.3,3406.7,0.8047]
[1732408903624,1.25160987,3407.7,3406.7,0.8047]
[1732408903828,0.08457057,3407.2,3406.7,0.8047]
[1732408903997,0.71221907,3407.6,3406.7,0.8047]
[1732408903998,0.43922195,3407.6,3406.7,0.8047]
[1732408904195,0.08453009,3407.1,3406.7,0.8047]
[1732408904403,0.43922195,3407.6,3406.7,0.8047]
[1732408904725,0.27299626,3407.5,3406.7,0.8047]
[1732408904897,0.27299626,3407.4,3406.7,0.8047]
[1732408905227,0.0845632,3407.3,3406.7,0.8047]
[1732408905808,0.2730142,3407.2,3406.7,0.8047]
[1732408906017,0.08454665,3407.2,3406.7,0.8047]
[1732408906236,0.33732234,3407.2,3406.5,0.13037557]
[1732408906418,1.17237222,3407.1,3406.5,0.13037557]
[1732408906618,0.27302706,3407.0,3406.5,0.13037557]
[1732408906814,0.08441205,3406.9,3406.5,0.13037557]
[1732408907320,0.8149,3406.7,3406.5,0.13037557]
[1732408907522,0.68176718,3406.6,3406.5,0.13037557]
[1732408907744,0.76609486,3406.6,3406.5,0.13037557]
[1732408908250,0.08432768,3406.6,3406.5,0.13037557]
[1732408908450,0.8149,3407.1,3406.5,0.13037557]
[1732408908655,0.08434603,3407.0,3406.5,0.13037557]
[1732408908960,0.35728915,3407.0,3406.5,0.13037557]
[1732408909129,0.27294312,3406.9,3406.5,0.13037557]
[1732408909650,0.08432249,3406.8,3406.5,0.13037557]
[1732408909951,0.27294312,3406.7,3406.5,0.13037557]
[1732408910152,0.08432249,3406.8,3406.5,0.13037557]
[1732408910452,0.08419354,3406.6,3406.5,0.13037557]
[1732408910850,0.8149,3407.1,3406.5,0.13037557]
[1732408911037,0.77969017,3407.0,3406.5,0.13037557]
[1732408911230,0.27289658,3406.9,3406.5,0.13037557]
[1732408911426,0.08422666,3406.8,3406.5,0.13037557]
[1732408911954,1.251609,3407.1,3406.5,0.13037557]
[1732408912158,0.0842101,3406.7,3406.5,0.13037557]
[1732408912448,1.251609,3407.1,3406.5,0.13037557]
[1732408912449,0.35725338,3406.6,3406.5,0.13037557]
[1732408912656,0.08421509,3406.6,3406.5,0.13037557]
[1732408912861,0.27303825,3406.6,3406.5,0.13037557]
[1732408913152,0.08421509,3406.6,3406.5,0.13037557]
[1732408913525,0.2731349,3406.9,3406.5,0.13037557]
[1732408913728,0.0842091,3406.6,3406.5,0.13037557]
[1732408914049,0.35733802,3406.6,3406.5,0.13037557]
[1732408915765,1.16162182,3406.6,3406.5,0.13037557]
[1732408916361,0.35742182,3406.6,3406.5,0.13037557]
[1732408917545,2.56859748,3406.8,3406.5,0.13037557]
[1732408917744,0.08131017,3406.6,3406.5,0.13037557]
[1732408918243,2.56859748,3406.8,3406.5,0.13037557]
[1732408918557,0.08131475,3406.7,3406.5,0.13037557]
[1732408919853,0.66574345,3406.7,3406.5,0.13037557]
[1732408921203,0.7911,3406.6,3406.5,0.13037557]
[1732408921407,1.53088243,3406.6,3406.5,0.13037557]
[1732408921559,1.61218422,3406.6,3406.5,0.13037557]
[1732408924167,1.61218422,3406.6,3406.2,0.03031602]
[1732408924378,0.82108422,3406.6,3406.2,0.03031602]
[1732408924582,0.08130179,3406.6,3406.0,0.8266]
[1732408927886,0.00110923,3406.9,3406.1,0.13039088]
[1732408928090,0.08132772,3406.8,3406.2,0.8266]
[1732408928422,0.08132772,3406.8,3406.3,0.13038322]
[1732408928663,0.08132772,3406.8,3406.4,0.8266]
[1732408928780,0.08132772,3406.8,3406.6,0.55]
[1732408929126,0.00110923,3406.9,3406.6,1.3766]
[1732408929280,0.08133133,3406.8,3406.6,0.55]
[1732408929485,0.00110923,3406.9,3406.7,0.8266]
[1732408929712,0.00110923,3406.9,3406.8,0.15069756]
[1732408930579,0.00110923,3406.9,3406.8,1.52729756]
[1732408930783,0.00110923,3406.9,3406.8,1.3766]
[1732408932789,0.00110923,3406.9,3406.8,0.8266]
[1732408933202,0.00110923,3406.9,3406.8,1.3766]
[1732408933899,0.00110923,3406.9,3406.8,0.8266]
[1732408936759,0.08259114,3406.9,3406.8,0.8266]
[1732408936953,0.00110923,3406.9,3406.8,0.8266]
[1732408937155,0.08259114,3406.9,3406.8,0.8266]
[1732408937366,0.00110923,3406.9,3406.8,0.8266]
[1732408937567,0.08257798,3406.9,3406.8,0.8266]
[1732408937863,0.00110923,3406.9,3406.8,0.8266]
[1732408938470,0.08257798,3406.9,3406.8,0.8266]
[1732408938763,0.07990891,3406.9,3406.8,0.8266]
[1732408939128,0.07990891,3406.9,3406.5,0.93857557]
[1732408943763,0.07990891,3406.9,3406.6,0.57935218]
[1732408944078,0.07990891,3406.9,3406.7,0.15179278]
[1732408945348,0.07990891,3406.9,3406.6,0.63964242]
[1732408947438,2.81117633,3406.8,3406.6,0.63964242]
[1732408947643,0.34961691,3406.7,3406.6,0.63964242]
[1732408948167,1.16211691,3406.7,3406.6,0.63964242]
[1732408948369,1.59969936,3406.7,3406.6,0.63964242]
[1732408950590,2.04089785,3406.7,3406.6,0.63964242]
[1732408955961,4.97628785,3406.7,3406.6,0.63964242]
[1732408956278,2.93547,3406.6,3406.5,0.11081093]
[1732408956480,2.84096594,3406.6,3406.5,0.11081093]
[1732408956657,2.91691109,3406.6,3406.5,0.11081093]
[1732408957357,1.1133933,3406.6,3406.5,0.11081093]
[1732408957558,1.55097575,3406.6,3406.5,0.11081093]
[1732408957955,4.48670348,3406.6,3406.5,0.11081093]
[1732408958354,7.58670348,3406.6,3406.5,0.11081093]
[1732408958991,2.93576,3406.3,3405.3,0.09456321]
[1732408959195,2.81117633,3405.9,3405.3,0.09456321]
[1732408959359,0.27357243,3405.8,3405.3,0.09456321]
[1732408959689,0.27357243,3405.7,3405.3,0.09456321]
[1732408959999,0.07574,3405.6,3405.3,0.09456321]
[1732408960199,0.28869495,3405.7,3405.3,0.09456321]
[1732408960357,0.07572343,3405.5,3405.3,0.09456321]
[1732408960560,0.764,3405.6,3405.3,0.09456321]
[1732408960800,0.07567693,3405.4,3405.3,0.09456321]
[1732408961092,1.15038713,3405.6,3405.3,0.09456321]
[1732408961295,0.07567693,3405.4,3405.3,0.09456321]
[1732408961496,0.07565417,3405.4,3405.3,0.09456321]
[1732408961872,1.15038713,3405.6,3405.3,0.09456321]
[1732408962078,0.07565417,3405.4,3405.3,0.09456321]
[1732408962265,0.1876297,3405.5,3404.9,0.7863]
[1732408962466,1.15038713,3405.6,3404.9,0.7863]
[1732408962467,0.07565417,3405.4,3404.9,0.7863]
[1732408962672,0.07565417,3405.4,3404.3,0.55]
[1732408962875,1.15038713,3405.6,3404.3,0.55]
[1732408963112,0.0756376,3405.3,3404.3,0.55]
[1732408963264,0.07562103,3405.2,3404.6,0.7863]
[1732408963769,0.764,3405.6,3404.6,0.7863]
[1732408963997,0.07560445,3405.1,3404.6,0.7863]
[1732408964206,0.764,3405.6,3404.6,0.7863]
[1732408964587,0.07567074,3405.5,3404.6,0.7863]
[1732408965417,2.88684707,3405.5,3404.0,0.0601756]
[1732408965704,4.07608471,3405.4,3404.1,0.798]
[1732408965865,2.81117633,3405.1,3404.1,0.798]
[1732408966293,0.86284058,3405.0,3404.1,0.798]
[1732408968200,0.07544058,3405.0,3404.1,0.798]
[1732408968401,3.28868471,3405.4,3404.2,0.55]
[1732408968728,0.075424,3404.9,3404.1,0.57937174]
[1732408969011,0.00110923,3404.5,3404.3,0.55]
[1732408969174,0.00110923,3404.5,3404.4,1.348]
[1732408969375,0.00110923,3404.5,3404.4,1.54073698]
[1732408972675,0.00110923,3404.5,3404.4,1.57010242]
[1732408973328,0.7874,3406.4,3404.8,0.55]
[1732408973489,0.7874,3406.4,3405.0,0.798]
[1732408973694,0.07563321,3406.3,3405.1,0.02936073]
[1732408973937,0.7874,3406.4,3405.1,0.02936073]
[1732408974172,0.58106314,3406.9,3405.3,0.55]
[1732408974173,0.7874,3406.9,3405.3,0.55]
[1732408974355,0.7874,3406.9,3405.1,3.02936073]
[1732408974356,0.07563321,3406.3,3405.5,0.55]
[1732408974529,0.7874,3406.9,3405.7,0.55]
[1732408974730,0.07582618,3406.8,3405.9,0.55]
[1732408977681,0.07582618,3406.8,3406.0,0.8172]
[1732408978884,0.07582618,3406.8,3406.1,0.55]
[1732408979089,0.07582618,3406.8,3406.3,0.55]
[1732408979296,2.81117633,3407.7,3406.3,0.55]
[1732408979297,0.43676668,3407.6,3406.5,0.55]
[1732408979582,0.27291077,3407.5,3406.5,0.55]
[1732408979745,3.59177633,3407.7,3406.5,0.55]
[1732408979946,0.70826954,3407.6,3406.5,0.55]
[1732408980181,0.43538047,3407.6,3406.5,0.55]
[1732408980584,0.43538047,3407.6,3406.7,0.55]
[1732408980754,0.07620284,3407.6,3406.7,0.55]
[1732408980959,0.27288206,3407.5,3406.7,0.55]
[1732408981169,0.07368285,3407.4,3406.7,0.55]
[1732408981369,0.7806,3407.7,3406.7,0.55]
[1732408981574,1.06054218,3407.6,3406.7,0.55]
[1732408981782,0.78767552,3407.6,3406.7,0.55]
[1732408981983,0.78767552,3407.6,3406.6,0.8172]
[1732408982196,3.0,3407.4,3406.6,0.8172]
[1732408982641,0.07130065,3407.3,3406.6,0.8172]
[1732408982847,0.5882477,3407.2,3406.6,0.8172]
[1732408983146,0.07126754,3407.1,3406.6,0.8172]
[1732408984581,0.07126754,3407.1,3405.6,0.0293524]
[1732408984786,0.7806,3407.0,3405.9,0.2925]
[1732408984987,0.85183543,3407.0,3406.2,0.55]
[1732408985749,0.07123543,3407.0,3406.2,0.55]
[1732408985990,0.5882477,3407.2,3406.2,0.55]
[1732408986186,0.07121888,3406.9,3406.2,0.55]
[1732408986350,0.5882477,3407.2,3406.2,0.55]
[1732408986546,0.07125199,3407.1,3406.2,0.55]
[1732408987356,0.07125199,3407.1,3406.3,0.8172]
[1732408987558,0.7806,3407.3,3406.3,0.8172]
[1732408987885,0.73051321,3407.2,3406.3,0.8172]
[1732408988590,2.81117633,3407.1,3406.3,0.8172]
[1732408988816,2.81117633,3407.1,3405.4,0.02935444]
[1732408988817,2.88250971,3407.1,3405.5,0.02935654]
[1732408988948,2.88250971,3407.1,3405.2,0.55]
[1732408988949,1.14190229,3407.0,3405.6,0.02935633]
[1732408989290,0.07129908,3406.9,3405.8,0.55]
[1732408989450,0.40243777,3406.8,3405.8,0.55]
[1732408989990,0.07126596,3406.7,3405.8,0.55]
[1732408990675,0.7806,3406.6,3405.7,0.8172]
[1732408990985,0.8518494,3406.6,3405.7,0.8172]
[1732408991350,0.40654635,3406.5,3405.7,0.8172]
[1732408991552,0.07119355,3406.4,3405.7,0.8172]
[1732408993500,2.81117633,3406.3,3404.8,0.02936105]
[1732408993701,0.32889162,3406.2,3404.9,0.8172]
[1732408993904,0.7806,3406.1,3404.9,0.8172]
[1732408994214,0.0710519,3406.0,3404.9,0.8172]
[1732408995016,0.0710519,3406.0,3405.0,0.02936773]
[1732408995218,0.0710519,3406.0,3405.1,0.7985]
[1732408995903,0.0710519,3406.0,3405.2,0.55]
[1732408996679,0.0710519,3406.0,3405.3,0.02936233]
[1732408997014,0.0710519,3406.0,3405.2,0.55]
[1732408997314,0.0710519,3406.0,3405.2,0.57936231]
[1732408997483,0.0710519,3406.0,3405.4,0.55]
[1732408997684,0.7787,3406.4,3405.4,0.57936099]
[1732408997883,0.07103174,3405.9,3405.4,0.57936099]
[1732408998231,0.7787,3406.4,3405.4,0.57936099]
[1732408998401,0.07101518,3405.8,3405.4,0.57936099]
[1732408998610,0.7787,3406.4,3405.4,0.57936099]
[1732408998914,0.07099861,3405.7,3405.4,0.57936099]
[1732408999217,0.7787,3406.4,3405.4,0.57936099]
[1732408999526,1.43768763,3406.4,3405.4,0.55]
[1732408999814,0.071098,3406.3,3405.4,0.55]
[1732409000015,0.071098,3406.3,3405.5,0.02935993]
[1732409000223,0.071098,3406.3,3405.7,0.55]
[1732409000427,0.7787,3406.7,3405.8,0.0293568]
[1732409000578,0.07099287,3406.2,3405.8,0.0293568]
[1732409000784,0.7787,3406.7,3405.8,0.0293568]
[1732409001011,0.07105911,3406.6,3406.0,0.55]
[1732409001216,0.07105911,3406.6,3406.0,0.74278568]
[1732409001914,0.07105911,3406.6,3406.1,0.02935445]
[1732409002218,0.58996375,3407.3,3406.3,0.55]
[1732409002380,0.07104255,3406.5,3406.4,0.02935201]
[1732409002722,0.7787,3407.4,3406.5,0.55]
[1732409002936,0.7787,3407.4,3406.7,0.55]
[1732409002937,0.27361377,3407.3,3406.7,0.55]
[1732409003221,0.071175,3407.3,3406.8,0.02934848]
[1732409003389,0.59283476,3407.7,3407.0,0.55]
[1732409003715,0.43778204,3408.0,3407.0,0.55]
[1732409003716,0.07122465,3407.6,3407.0,0.5793474]
[1732409004227,0.7787,3408.2,3407.0,0.55]
[1732409004514,0.0712081,3407.5,3407.0,0.55]
[1732409004726,0.18145315,3408.1,3407.0,0.55]
[1732409005017,0.34471617,3408.0,3407.0,0.55]
[1732409005316,0.07129084,3408.0,3407.0,0.55]
[1732409005483,0.27333202,3407.9,3407.0,0.55]
[1732409005683,0.7787,3407.7,3407.0,0.55]
[1732409006197,0.07138021,3407.6,3407.0,0.55]
[1732409006381,0.07138021,3407.6,3406.9,0.7985]
[1732409006582,0.07138021,3407.6,3406.3,0.55]
[1732409006781,0.07138021,3407.6,3406.5,0.55]
[1732409007021,0.07138021,3407.6,3406.6,0.02934887]
[1732409007514,0.07138021,3407.6,3406.5,0.55]
[1732409007728,0.07138021,3407.6,3406.5,0.57934888]
[1732409008225,0.07138021,3407.6,3406.7,0.55]
[1732409008421,0.07138021,3407.6,3406.8,0.0293487]
[1732409008977,0.7787,3408.1,3407.0,0.55]
[1732409009181,0.0714476,3408.0,3407.1,0.02934449]
[1732409009434,0.0714476,3408.0,3407.2,0.7985]
[1732409009577,0.7787,3408.4,3407.3,0.55]
[1732409009918,3.5773053,3408.3,3407.2,0.7985]
[1732409010216,1.05175778,3408.2,3407.2,0.7985]
[1732409010422,0.43560053,3408.1,3407.2,0.7985]
[1732409010576,0.50707903,3408.1,3407.2,0.7985]
[1732409011500,0.50707903,3408.1,3406.6,0.7985]
[1732409011813,0.50707903,3408.1,3406.7,0.57934768]
[1732409011986,0.45185174,3408.0,3406.7,0.57934768]
[1732409012691,0.7787,3407.8,3406.7,0.55]
[1732409013108,0.07159536,3407.7,3406.7,0.55]
[1732409014821,0.07159536,3407.7,3406.9,0.55]
[1732409014987,0.07159536,3407.7,3406.7,0.55]
[1732409015183,0.07157881,3407.7,3406.7,0.55]
[1732409016089,0.07157881,3407.7,3406.8,0.0293488]
[1732409016643,0.07157881,3407.7,3407.0,0.55]
[1732409016922,0.07157881,3407.7,3407.0,0.57934537]
[1732409017287,0.8323,3408.0,3407.0,0.57934537]
[1732409017483,0.06799315,3407.6,3407.0,0.57934537]
[1732409017788,0.8323,3408.0,3407.0,0.57934537]
[1732409017984,0.0680428,3407.9,3407.0,0.57934537]
[1732409020530,0.0680428,3407.9,3407.0,0.55]
[1732409021207,0.0680428,3407.9,3407.1,0.0293456]
[1732409021727,0.0680428,3407.9,3407.1,2.84052193]
[1732409021930,0.0680428,3407.9,3407.3,0.55]
[1732409022127,0.8323,3408.8,3407.5,0.55]
[1732409022428,0.0681871,3408.7,3407.6,0.02933828]
[1732409022591,0.0681871,3408.7,3407.8,0.55]
[1732409022787,0.0681871,3408.7,3407.9,0.02933852]
[1732409022991,0.8323,3408.8,3407.9,0.02933852]
[1732409023288,0.0681871,3408.7,3407.8,0.57933854]
[1732409023715,0.8323,3408.8,3407.8,0.57933854]
[1732409024140,0.0681871,3408.7,3407.8,0.57933854]
[1732409024894,0.0681871,3408.7,3408.0,0.55]
[1732409025089,0.0681871,3408.7,3408.1,0.02933658]
[1732409026009,0.0681871,3408.7,3407.9,0.02933657]
[1732409026815,0.7851,3409.3,3408.2,0.765]
[1732409027033,0.06839414,3409.2,3408.3,0.57933239]
[1732409027390,2.81117633,3410.1,3408.5,0.55]
[1732409027624,2.81117633,3410.1,3408.7,0.55]
[1732409027625,0.7851,3409.3,3408.7,0.55]
[1732409027791,0.06839414,3409.2,3408.7,0.55]
[1732409027991,0.7851,3409.3,3408.7,0.55]
[1732409028936,0.06839414,3409.2,3408.7,0.55]
[1732409029288,0.7851,3409.3,3408.7,0.55]
[1732409029498,0.7851,3409.3,3408.5,0.55]
[1732409029723,0.06839414,3409.2,3408.5,0.57933249]
[1732409029893,0.7851,3409.3,3408.5,0.57933249]
[1732409032396,0.7851,3409.3,3408.5,0.55]
[1732409032836,0.7851,3409.3,3408.5,0.74283833]
[1732409032998,0.7851,3409.3,3408.2,0.58405074]
[1732409032999,0.7851,3409.3,3408.2,0.55]
[1732409033199,0.06839074,3409.2,3408.2,0.55]
[1732409033399,0.7851,3409.1,3408.2,0.55]
[1732409033720,0.06835768,3409.0,3408.2,0.55]
[1732409035295,0.06835768,3409.0,3408.3,0.0293354]
[1732409035947,0.7851,3409.1,3408.2,0.55]
[1732409036546,0.7851,3409.1,3408.3,0.02933314]
[1732409038345,0.7851,3409.1,3408.2,0.55]